bitfinex-derivatives/quotes_BNBF0:USTF0_20250908
["timestamp","ask_amount","ask_price","bid_price","bid_amount"]
[1757369653017,1.3771071,878.81,876.81,2.5308841]
[1757369654016,1.3771071,878.81,876.83,2.5308841]
[1757369654620,1.3771071,878.81,876.87,2.5308841]
[1757369655623,1.3771071,878.81,876.86,2.5308841]
[1757369656621,1.3771071,878.81,876.83,2.5308841]
[1757369657119,1.3771071,878.81,876.85,2.5308841]
[1757369658825,1.3771071,878.81,876.5,0.1977784]
[1757369658826,1.3771071,878.81,876.83,2.5308841]
[1757369659325,1.3771071,878.81,876.84,2.5308841]
[1757369659826,1.3771071,878.81,876.85,2.5308841]
[1757369660321,0.65504464,878.8,876.85,2.5308841]
[1757369660526,2.5403656,879.33,876.85,2.5308841]
[1757369660822,0.65505168,879.32,876.85,2.5308841]
[1757369661021,0.65505168,879.31,876.85,2.5308841]
[1757369661225,0.65505168,879.3,876.85,2.5308841]
[1757369661423,0.65505168,879.29,876.85,2.5308841]
[1757369661723,0.65505168,879.28,876.85,2.5308841]
[1757369661927,0.65505168,879.27,876.85,2.5308841]
[1757369662125,0.65505168,879.26,876.85,2.5308841]
[1757369662320,0.65505168,879.25,876.85,2.5308841]
[1757369662523,0.65505168,879.24,876.85,2.5308841]
[1757369662722,0.65505168,879.23,876.85,2.5308841]
[1757369662923,0.65505168,879.22,876.87,2.5308841]
[1757369663124,1.5258813,878.81,876.87,2.5308841]
[1757369667226,1.5258813,878.84,876.87,2.5308841]
[1757369667432,1.5258813,879.05,876.87,2.5308841]
[1757369667630,0.65502431,879.04,876.58,3.5432377]
[1757369667831,0.65502431,879.03,876.58,3.5432377]
[1757369668031,0.65502431,879.02,876.58,3.5432377]
[1757369668232,0.65502431,879.01,876.5,0.1977784]
[1757369668528,0.65502431,879.0,876.5,0.1977784]
[1757369668832,0.65502431,878.99,876.5,0.1977784]
[1757369669028,0.65502431,878.98,876.5,0.1977784]
[1757369669329,0.65502431,878.97,876.5,0.1977784]
[1757369669528,0.65502431,878.96,876.5,0.1977784]
[1757369669731,0.65502431,878.95,876.5,0.1977784]
[1757369669936,0.65502431,878.94,876.5,0.1977784]
[1757369670135,0.65502431,878.93,876.5,0.1977784]
[1757369670334,0.65502431,878.92,876.5,0.1977784]
[1757369670540,0.65502431,878.91,876.5,0.1977784]
[1757369670734,0.65502431,878.9,876.5,0.1977784]
[1757369670935,1.5258813,879.05,876.5,0.1977784]
[1757369670936,0.65502431,878.89,876.5,0.1977784]
[1757369671140,0.65502431,878.88,876.5,0.1977784]
[1757369671438,0.65502431,878.87,876.5,0.1977784]
[1757369671636,0.65502431,878.86,876.5,0.1977784]
[1757369671841,0.65502431,878.85,876.5,0.1977784]
[1757369672137,1.5258813,879.05,876.5,0.1977784]
[1757369672336,0.65598273,879.04,876.5,0.1977784]
[1757369672536,0.65598273,879.03,876.5,0.1977784]
[1757369672736,0.65598273,879.02,876.5,0.1977784]
[1757369672938,0.65598273,879.01,876.5,0.1977784]
[1757369673144,0.65598273,879.0,876.5,0.1977784]
[1757369673340,0.65598273,878.99,876.5,0.1977784]
[1757369673543,0.65598273,878.98,876.5,0.1977784]
[1757369673747,0.65598273,878.97,876.5,0.1977784]
[1757369673948,0.65598273,878.96,876.5,0.1977784]
[1757369674148,0.65598273,878.95,876.5,0.1977784]
[1757369674447,0.65598273,878.94,876.5,0.1977784]
[1757369674648,0.65598273,878.93,876.5,0.1977784]
[1757369674849,0.65598273,878.92,876.5,0.1977784]
[1757369675145,0.65598273,878.91,876.5,0.1977784]
[1757369675451,0.65598273,878.9,876.5,0.1977784]
[1757369675749,0.65598273,878.89,876.5,0.1977784]
[1757369675949,0.65598273,878.88,876.5,0.1977784]
[1757369676149,0.65598273,878.87,876.5,0.1977784]
[1757369676347,0.65598273,878.86,876.5,0.1977784]
[1757369676548,0.65598273,878.85,876.5,0.1977784]
[1757369676750,1.5258813,879.05,876.5,0.1977784]
[1757369676949,0.6560328,879.04,876.5,0.1977784]
[1757369677146,1.5258813,878.93,876.5,0.1977784]
[1757369677348,1.5258813,878.85,876.5,0.1977784]
[1757369677552,1.5258813,878.85,876.77,2.5308841]
[1757369678953,1.5258813,878.85,876.78,2.5308841]
[1757369680049,1.5258813,878.85,876.79,2.5308841]
[1757369680248,1.5258813,878.88,876.79,2.5308841]
[1757369680448,0.65615676,878.87,876.79,2.5308841]
[1757369680649,0.65615676,878.86,876.72,2.5308841]
[1757369680950,0.65615676,878.85,876.72,2.5308841]
[1757369681150,1.5258813,878.88,876.71,2.5308841]
[1757369681351,0.65624354,878.87,876.71,2.5308841]
[1757369681655,0.65624354,878.86,876.72,2.5308841]
[1757369681853,0.65624354,878.85,876.72,2.5308841]
[1757369682054,1.5258813,878.85,876.72,2.5308841]
[1757369682262,1.5258813,878.85,876.79,2.5308841]
[1757369682751,1.5258813,878.88,876.79,2.5308841]
[1757369682954,0.65635072,878.87,876.79,2.5308841]
[1757369683156,0.65635072,878.86,876.72,2.5308841]
[1757369683456,0.65635072,878.85,876.72,2.5308841]
[1757369683755,1.5258813,878.87,876.72,2.5308841]
[1757369683955,0.65645828,878.86,876.72,2.5308841]
[1757369684251,0.65645828,878.85,876.55,2.5308841]
[1757369684456,1.5258813,878.95,876.55,2.5308841]
[1757369684655,0.65657882,878.94,876.55,2.5308841]
[1757369684855,0.65657882,878.93,876.55,2.5308841]
[1757369685056,0.65657882,878.92,876.55,2.5308841]
[1757369685257,0.65657882,878.91,876.57,2.5308841]
[1757369685453,0.65657882,878.9,876.57,2.5308841]
[1757369685653,0.65657882,878.89,876.57,2.5308841]
[1757369685853,0.65657882,878.88,876.57,2.5308841]
[1757369686054,0.65657882,878.87,876.57,2.5308841]
[1757369686353,0.65657882,878.86,876.6,2.5308841]
[1757369686557,0.65657882,878.85,876.6,2.5308841]
[1757369686755,0.65728321,878.84,876.5,0.1977784]
[1757369686954,0.65728321,878.83,876.5,0.1977784]
[1757369687158,0.65728321,878.82,876.5,0.1977784]
[1757369687355,0.65728321,878.81,876.5,0.1977784]
[1757369687559,0.65728321,878.8,876.5,0.1977784]
[1757369687760,0.65728321,878.79,876.5,0.1977784]
[1757369687956,0.65728321,878.78,876.5,0.1977784]
[1757369688260,0.65728321,878.77,876.5,0.1977784]
[1757369688457,0.65728321,878.76,876.5,0.1977784]
[1757369688656,0.65728321,878.75,876.5,0.1977784]
[1757369688960,0.65728321,878.74,876.5,0.1977784]
[1757369689259,0.65728321,878.73,876.5,0.1977784]
[1757369689454,1.5258813,878.91,876.5,0.1977784]
[1757369689655,0.65783593,878.9,876.5,0.1977784]
[1757369689860,0.65783593,878.89,876.5,0.1977784]
[1757369690157,0.65783593,878.88,876.5,0.1977784]
[1757369690358,1.5258813,878.91,876.5,0.1977784]
[1757369690359,0.65783593,878.87,876.5,0.1977784]
[1757369690558,0.65783593,878.86,876.5,0.1977784]
[1757369690758,0.65783593,878.85,876.5,0.1977784]
[1757369690961,0.65783593,878.84,876.5,0.1977784]
[1757369691157,0.65783593,878.83,876.5,0.1977784]
[1757369691363,0.65783593,878.82,876.5,0.1977784]
[1757369691562,1.5258813,878.89,876.5,0.1977784]
[1757369691563,0.65783593,878.81,876.5,0.1977784]
[1757369691764,0.65783593,878.8,876.5,0.1977784]
[1757369691964,0.65783593,878.79,876.5,0.1977784]
[1757369692164,0.65783593,878.78,876.5,0.1977784]
[1757369692361,0.65783593,878.77,876.5,0.1977784]
[1757369692567,0.65783593,878.76,876.5,0.1977784]
[1757369692764,0.65783593,878.75,876.5,0.1977784]
[1757369692963,0.65783593,878.74,876.5,0.1977784]
[1757369693167,0.65783593,878.73,876.5,0.1977784]
[1757369693463,1.5258813,878.84,876.5,0.1977784]
[1757369693667,0.65767768,878.83,876.5,0.1977784]
[1757369693964,0.65767768,878.82,876.5,0.1977784]
[1757369694164,0.65767768,878.81,876.5,0.1977784]
[1757369694364,0.65767768,878.8,876.5,0.1977784]
[1757369694666,0.65767768,878.79,876.5,0.1977784]
[1757369694864,0.65767768,878.78,876.5,0.1977784]
[1757369695064,5.1015647,880.82,876.5,0.1977784]
[1757369695065,0.65767768,878.77,876.5,0.1977784]
[1757369695264,0.65767768,878.76,876.5,0.1977784]
[1757369695470,1.5258813,878.59,876.5,0.1977784]
[1757369695669,0.65767768,878.58,876.5,0.1977784]
[1757369695864,0.65767768,878.57,876.5,0.1977784]
[1757369696065,0.65767768,878.56,876.5,0.1977784]
[1757369696269,0.65767768,878.55,876.5,0.1977784]
[1757369696467,0.65767768,878.54,876.5,0.1977784]
[1757369696668,0.65767768,878.53,876.5,0.1977784]
[1757369696871,0.65767768,878.52,876.5,0.1977784]
[1757369697071,0.65767768,878.51,876.5,0.1977784]
[1757369697269,0.65767768,878.5,876.5,0.1977784]
[1757369697472,0.65767768,878.49,876.5,0.1977784]
[1757369697672,0.65767768,878.48,876.5,0.1977784]
[1757369697872,0.65767768,878.47,876.5,0.1977784]
[1757369698172,0.65767768,878.46,876.5,0.1977784]
[1757369698370,0.65767768,878.45,876.5,0.1977784]
[1757369698673,1.5258813,878.83,876.5,0.1977784]
[1757369698873,0.65640406,878.82,876.5,0.1977784]
[1757369699073,0.65640406,878.81,876.5,0.1977784]
[1757369699272,0.65640406,878.8,876.5,0.1977784]
[1757369699469,0.65640406,878.79,876.5,0.1977784]
[1757369699673,0.65640406,878.78,876.5,0.1977784]
[1757369699969,0.65640406,878.77,876.5,0.1977784]
[1757369700168,0.65640406,878.76,876.5,0.1977784]
[1757369700372,0.65640406,878.75,876.5,0.1977784]
[1757369700572,0.65640406,878.74,876.5,0.1977784]
[1757369700770,0.65640406,878.73,876.5,0.1977784]
[1757369701075,0.65640406,878.72,876.5,0.1977784]
[1757369701270,0.65640406,878.71,876.5,0.1977784]
[1757369701474,0.65640406,878.7,876.5,0.1977784]
[1757369701771,0.65640406,878.69,876.5,0.1977784]
[1757369701969,0.65640406,878.68,876.5,0.1977784]
[1757369702174,0.65640406,878.67,876.5,0.1977784]
[1757369702370,0.65640406,878.66,876.5,0.1977784]
[1757369702569,0.65640406,878.65,876.5,0.1977784]
[1757369702871,0.65640406,878.64,876.5,0.1977784]
[1757369703072,0.65640406,878.63,876.5,0.1977784]
[1757369703270,0.65640406,878.62,876.5,0.1977784]
[1757369703473,0.65640406,878.61,876.5,0.1977784]
[1757369703671,0.65640406,878.6,876.5,0.1977784]
[1757369703975,0.65640406,878.59,876.5,0.1977784]
[1757369704273,0.65640406,878.58,876.5,0.1977784]
[1757369704477,0.65640406,878.57,876.5,0.1977784]
[1757369704773,0.65640406,878.56,876.5,0.1977784]
[1757369704976,1.5258813,878.82,876.5,0.1977784]
[1757369704977,0.65640406,878.55,876.5,0.1977784]
[1757369705173,0.65640406,878.54,876.5,0.1977784]
[1757369705377,0.65640406,878.53,876.5,0.1977784]
[1757369705577,0.65640406,878.52,876.5,0.1977784]
[1757369705772,1.5258813,878.81,876.5,0.1977784]
[1757369705975,0.65692535,878.8,876.5,0.1977784]
[1757369706178,0.65692535,878.79,876.5,0.1977784]
[1757369706477,2.18280665,878.78,876.5,0.1977784]
[1757369706675,0.65692535,878.77,876.5,0.1977784]
[1757369706879,0.65692535,878.76,876.5,0.1977784]
[1757369707079,0.65692535,878.75,876.5,0.1977784]
[1757369707376,0.65692535,878.74,876.5,0.1977784]
[1757369707675,0.65692535,878.73,876.5,0.1977784]
[1757369707875,0.65692535,878.72,876.5,0.1977784]
[1757369708080,0.65692535,878.71,876.5,0.1977784]
[1757369708281,1.5258813,878.66,876.5,0.1977784]
[1757369708474,1.5258813,878.64,876.5,0.1977784]
[1757369708678,0.65692535,878.63,876.5,0.1977784]
[1757369708976,0.65692535,878.62,876.5,0.1977784]
[1757369709280,0.65692535,878.61,876.5,0.1977784]
[1757369709477,0.65692535,878.6,876.5,0.1977784]
[1757369709782,0.65692535,878.59,876.5,0.1977784]
[1757369709981,0.65692535,878.58,876.5,0.1977784]
[1757369710177,1.5258813,878.7,876.5,0.1977784]
[1757369710178,0.65692535,878.57,876.5,0.1977784]
[1757369710477,0.65692535,878.56,876.5,0.1977784]
[1757369710676,0.65692535,878.55,876.5,0.1977784]
[1757369710879,0.65692535,878.54,876.5,0.1977784]
[1757369711179,0.65692535,878.53,876.5,0.1977784]
[1757369711379,0.65692535,878.52,876.5,0.1977784]
[1757369711580,1.5258813,878.71,876.5,0.1977784]
[1757369711879,0.65652671,878.7,876.5,0.1977784]
[1757369712083,0.65652671,878.69,876.5,0.1977784]
[1757369712281,0.65652671,878.68,876.5,0.1977784]
[1757369712480,0.65652671,878.67,876.5,0.1977784]
[1757369712681,0.65652671,878.66,876.5,0.1977784]
[1757369712984,0.65652671,878.65,876.5,0.1977784]
[1757369713185,0.65652671,878.64,876.5,0.1977784]
[1757369713486,0.65652671,878.63,876.5,0.1977784]
[1757369713786,0.65652671,878.62,876.5,0.1977784]
[1757369713985,0.65652671,878.61,876.5,0.1977784]
[1757369714188,0.65652671,878.6,876.5,0.1977784]
[1757369714482,2.5403656,879.47,876.5,0.1977784]
[1757369714483,0.65652671,878.59,876.5,0.1977784]
[1757369714783,0.65652671,878.58,876.5,0.1977784]
[1757369714983,0.65652671,878.57,876.5,0.1977784]
[1757369715186,0.65652671,878.56,876.5,0.1977784]
[1757369715486,0.65652671,878.55,876.5,0.1977784]
[1757369715781,0.65652671,878.54,876.5,0.1977784]
[1757369715985,0.65652671,878.53,876.5,0.1977784]
[1757369716186,0.65652671,878.52,876.5,0.1977784]
[1757369716383,0.65633122,878.51,876.5,0.1977784]
[1757369716683,1.5258813,878.73,876.5,0.1977784]
[1757369716883,0.65633122,878.72,876.5,0.1977784]
[1757369717183,0.65633122,878.71,876.5,0.1977784]
[1757369717382,0.65633122,878.7,876.5,0.1977784]
[1757369717686,0.65633122,878.69,876.5,0.1977784]
[1757369717886,0.65633122,878.68,876.5,0.1977784]
[1757369718082,0.65633122,878.67,876.5,0.1977784]
[1757369718283,0.65633122,878.66,876.5,0.1977784]
[1757369718486,0.65633122,878.65,876.5,0.1977784]
[1757369718687,0.65633122,878.64,876.5,0.1977784]
[1757369718984,0.65633122,878.63,876.5,0.1977784]
[1757369719182,0.65633122,878.62,876.5,0.1977784]
[1757369719387,0.65633122,878.61,876.5,0.1977784]
[1757369719589,0.65633122,878.6,876.5,0.1977784]
[1757369719788,0.65633122,878.59,876.5,0.1977784]
[1757369719983,0.65633122,878.58,876.5,0.1977784]
[1757369720189,0.65633122,878.57,876.5,0.1977784]
[1757369720489,0.65633122,878.56,876.5,0.1977784]
[1757369720687,0.65633122,878.55,876.5,0.1977784]
[1757369720989,0.65633122,878.54,876.5,0.1977784]
[1757369721187,0.65633122,878.53,876.5,0.1977784]
[1757369721386,0.65633122,878.52,876.5,0.1977784]
[1757369721587,0.65633122,878.51,876.5,0.1977784]
[1757369721889,0.65633122,878.5,876.5,0.1977784]
[1757369722086,1.5258813,878.79,876.5,0.1977784]
[1757369722284,1.5258813,878.76,876.5,0.1977784]
[1757369722486,1.5258813,878.73,876.5,0.1977784]
[1757369722686,0.6562061,878.72,876.5,0.1977784]
[1757369722889,0.6562061,878.71,876.5,0.1977784]
[1757369723090,0.6562061,878.7,876.5,0.1977784]
[1757369723290,0.6562061,878.69,876.5,0.1977784]
[1757369723491,0.6562061,878.68,876.5,0.1977784]
[1757369723691,0.6562061,878.67,876.5,0.1977784]
[1757369723892,0.6562061,878.66,876.5,0.1977784]
[1757369724192,0.6562061,878.65,876.5,0.1977784]
[1757369724492,0.6562061,878.64,876.5,0.1977784]
[1757369724792,0.6562061,878.63,876.5,0.1977784]
[1757369724991,0.6562061,878.62,876.5,0.1977784]
[1757369725191,0.6562061,878.61,876.5,0.1977784]
[1757369725491,0.6562061,878.6,876.5,0.1977784]
[1757369725693,0.6562061,878.59,876.5,0.1977784]
[1757369725893,0.6562061,878.58,876.5,0.1977784]
[1757369726092,0.6562061,878.57,876.5,0.1977784]
[1757369726393,0.6562061,878.56,876.5,0.1977784]
[1757369726593,0.6562061,878.55,876.5,0.1977784]
[1757369726792,0.6562061,878.54,876.5,0.1977784]
[1757369726993,0.6562061,878.53,876.5,0.1977784]
[1757369727199,0.6562061,878.52,876.5,0.1977784]
[1757369727389,0.6562061,878.51,876.5,0.1977784]
[1757369727694,0.6562061,878.5,876.5,0.1977784]
[1757369727892,0.6562061,878.49,876.5,0.1977784]
[1757369728095,0.6562061,878.48,876.5,0.1977784]
[1757369728392,0.6562061,878.47,876.5,0.1977784]
[1757369728593,0.6562061,878.46,876.5,0.1977784]
[1757369728786,0.6562061,878.45,876.5,0.1977784]
[1757369728992,0.6562061,878.44,876.5,0.1977784]
[1757369729189,0.6562061,878.43,876.5,0.1977784]
[1757369729489,0.6562061,878.42,876.5,0.1977784]
[1757369729788,0.6562061,878.41,876.5,0.1977784]
[1757369729988,0.6562061,878.4,876.5,0.1977784]
[1757369730194,0.6562061,878.39,876.5,0.1977784]
[1757369730394,0.6562061,878.38,876.5,0.1977784]
[1757369730691,1.5258813,878.76,876.5,0.1977784]
[1757369730894,0.65606956,878.75,876.5,0.1977784]
[1757369731091,0.65606956,878.74,876.5,0.1977784]
[1757369731296,0.65606956,878.73,876.5,0.1977784]
[1757369731591,0.65606956,878.72,876.5,0.1977784]
[1757369731795,1.5258813,878.76,876.5,0.1977784]
[1757369731796,0.65606956,878.71,876.5,0.1977784]
[1757369731996,0.65606956,878.7,876.5,0.1977784]
[1757369732196,0.65606956,878.69,876.5,0.1977784]
[1757369732394,0.65606956,878.68,876.5,0.1977784]
[1757369732695,1.5258813,878.5,876.5,0.1977784]
[1757369732896,0.65606956,878.49,876.5,0.1977784]
[1757369733193,0.65606956,878.48,876.5,0.1977784]
[1757369733397,0.65606956,878.47,876.5,0.1977784]
[1757369733592,0.65606956,878.46,876.5,0.1977784]
[1757369733796,0.65606956,878.45,876.5,0.1977784]
[1757369733994,0.65606956,878.44,876.5,0.1977784]
[1757369734292,2.5403656,879.25,876.5,0.1977784]
[1757369734293,0.65606956,878.43,876.5,0.1977784]
[1757369734599,0.65606956,878.42,876.5,0.1977784]
[1757369734892,0.65606956,878.41,876.5,0.1977784]
[1757369735092,0.65606956,878.4,876.5,0.1977784]
[1757369735298,0.65606956,878.39,876.5,0.1977784]
[1757369735597,0.65606956,878.38,876.5,0.1977784]
[1757369735796,0.65606956,878.37,876.5,0.1977784]
[1757369735994,0.65606956,878.36,876.5,0.1977784]
[1757369736198,0.65606956,878.35,876.5,0.1977784]
[1757369736399,0.65606956,878.34,876.5,0.1977784]
[1757369736600,0.65606956,878.33,876.5,0.1977784]
[1757369736801,1.5258813,878.45,876.5,0.1977784]
[1757369737000,0.65651408,878.44,876.5,0.1977784]
[1757369737197,0.65651408,878.43,876.5,0.1977784]
[1757369737401,0.65651408,878.42,876.5,0.1977784]
[1757369737601,0.65651408,878.41,876.5,0.1977784]
[1757369737802,0.65651408,878.4,876.5,0.1977784]
[1757369738000,0.65651408,878.39,876.5,0.1977784]
[1757369738297,0.65651408,878.38,876.5,0.1977784]
[1757369738496,0.65651408,878.37,876.5,0.1977784]
[1757369738700,0.65651408,878.36,876.5,0.1977784]
[1757369738897,0.65651408,878.35,876.5,0.1977784]
[1757369739102,0.65651408,878.34,876.5,0.1977784]
[1757369739303,0.65651408,878.33,876.5,0.1977784]
[1757369739501,1.5258813,878.44,876.5,0.1977784]
[1757369739699,0.65664695,878.43,876.5,0.1977784]
[1757369739998,0.65664695,878.42,876.5,0.1977784]
[1757369740202,1.5258813,878.35,876.5,0.1977784]
[1757369740400,0.65664695,878.34,876.5,0.1977784]
[1757369740604,0.65664695,878.33,876.5,0.1977784]
[1757369740904,0.65664695,878.32,876.5,0.1977784]
[1757369741102,0.65664695,878.31,876.5,0.1977784]
[1757369741301,0.65664695,878.3,876.5,0.1977784]
[1757369741502,0.65664695,878.29,876.5,0.1977784]
[1757369741701,0.65664695,878.28,876.5,0.1977784]
[1757369741900,0.65664695,878.27,876.5,0.1977784]
[1757369742101,0.65664695,878.26,876.5,0.1977784]
[1757369742301,0.65664695,878.25,876.5,0.1977784]
[1757369742500,0.65664695,878.24,876.5,0.1977784]
[1757369742700,0.65664695,878.23,876.5,0.1977784]
[1757369742903,0.65664695,878.22,876.5,0.1977784]
[1757369743101,0.65664695,878.21,876.5,0.1977784]
[1757369743302,0.65664695,878.2,876.5,0.1977784]
[1757369743501,1.5258813,878.33,876.5,0.1977784]
[1757369743706,0.65677143,878.32,876.5,0.1977784]
[1757369743906,0.65677143,878.31,876.5,0.1977784]
[1757369744106,0.65677143,878.3,876.5,0.1977784]
[1757369744306,0.65677143,878.29,876.5,0.1977784]
[1757369744506,0.65677143,878.28,876.5,0.1977784]
[1757369744706,0.65677143,878.27,876.5,0.1977784]
[1757369745006,0.65677143,878.26,876.5,0.1977784]
[1757369745204,0.65677143,878.25,876.5,0.1977784]
[1757369745399,0.65677143,878.24,876.5,0.1977784]
[1757369745603,0.65677143,878.23,876.5,0.1977784]
[1757369745806,0.65677143,878.22,876.5,0.1977784]
[1757369746003,0.65677143,878.21,876.5,0.1977784]
[1757369746203,0.65677143,878.2,876.5,0.1977784]
[1757369746405,0.65677143,878.19,876.5,0.1977784]
[1757369746606,0.65677143,878.18,876.5,0.1977784]
[1757369746808,1.5258813,878.65,876.5,0.1977784]
[1757369747010,0.65697243,878.64,876.5,0.1977784]
[1757369747305,0.65697243,878.63,876.5,0.1977784]
[1757369747510,0.65697243,878.62,876.5,0.1977784]
[1757369747709,0.65697243,878.61,876.5,0.1977784]
[1757369747905,0.65697243,878.6,876.5,0.1977784]
[1757369748209,1.5258813,878.65,876.5,0.1977784]
[1757369748210,0.65697243,878.59,876.5,0.1977784]
[1757369748406,0.65697243,878.58,876.5,0.1977784]
[1757369748708,0.65697243,878.57,876.5,0.1977784]
[1757369748906,0.65697243,878.56,876.5,0.1977784]
[1757369749106,0.65697243,878.55,876.5,0.1977784]
[1757369749309,0.65697243,878.54,876.5,0.1977784]
[1757369749509,0.65697243,878.53,876.5,0.1977784]
[1757369749710,0.65697243,878.52,876.5,0.1977784]
[1757369750014,0.65697243,878.51,876.5,0.1977784]
[1757369750207,0.65697243,878.5,876.5,0.1977784]
[1757369750406,0.65697243,878.49,876.5,0.1977784]
[1757369750611,0.65697243,878.48,876.5,0.1977784]
[1757369750906,0.65697243,878.47,876.5,0.1977784]
[1757369751110,0.65697243,878.46,876.5,0.1977784]
[1757369751307,0.65697243,878.45,876.5,0.1977784]
[1757369751511,0.65697243,878.44,876.5,0.1977784]
[1757369751713,0.65697243,878.43,876.5,0.1977784]
[1757369751908,0.65697243,878.42,876.5,0.1977784]
[1757369752111,0.65697243,878.41,876.5,0.1977784]
[1757369752312,0.65697243,878.4,876.5,0.1977784]
[1757369752512,0.65697243,878.39,876.5,0.1977784]
[1757369752713,0.65697243,878.38,876.5,0.1977784]
[1757369753009,0.65697243,878.37,876.5,0.1977784]
[1757369753309,0.65697243,878.36,876.5,0.1977784]
[1757369753512,0.65697243,878.35,876.5,0.1977784]
[1757369753709,0.65697243,878.34,876.5,0.1977784]
[1757369753914,0.65697243,878.33,876.5,0.1977784]
[1757369754111,0.65697243,878.32,876.5,0.1977784]
[1757369754315,0.65697243,878.31,876.5,0.1977784]
[1757369754611,0.65697243,878.3,876.5,0.1977784]
[1757369754811,0.65697243,878.29,876.5,0.1977784]
[1757369755012,0.65697243,878.28,876.5,0.1977784]
[1757369755216,0.65697243,878.27,876.5,0.1977784]
[1757369755416,0.65697243,878.26,876.5,0.1977784]
[1757369755717,0.65697243,878.25,876.5,0.1977784]
[1757369755912,0.65697243,878.24,876.5,0.1977784]
[1757369756215,0.65697243,878.23,876.5,0.1977784]
[1757369756413,0.65697243,878.22,876.5,0.1977784]
[1757369756617,0.65697243,878.21,876.5,0.1977784]
[1757369756813,0.65697243,878.2,876.5,0.1977784]
[1757369757013,0.65697243,878.19,876.5,0.1977784]
[1757369757211,0.65697243,878.18,876.5,0.1977784]
[1757369757414,1.5258813,878.36,876.5,0.1977784]
[1757369757614,0.65723789,878.35,876.5,0.1977784]
[1757369757818,0.65723789,878.34,876.5,0.1977784]
[1757369758117,1.5258813,878.32,876.5,0.1977784]
[1757369758314,0.65723789,878.31,876.5,0.1977784]
[1757369758512,0.65723789,878.3,876.5,0.1977784]
[1757369758715,0.65723789,878.29,876.5,0.1977784]
[1757369758917,0.65723789,878.28,876.5,0.1977784]
[1757369759116,0.65723789,878.27,876.5,0.1977784]
[1757369759318,0.65723789,878.26,876.5,0.1977784]
[1757369759514,0.65723789,878.25,876.5,0.1977784]
[1757369759817,0.65723789,878.24,876.5,0.1977784]
[1757369760013,0.65723789,878.23,876.5,0.1977784]
[1757369760314,0.65723789,878.22,876.5,0.1977784]
[1757369760518,0.65723789,878.21,876.5,0.1977784]
[1757369760818,0.65723789,878.2,876.5,0.1977784]
[1757369761118,0.65723789,878.19,876.5,0.1977784]
[1757369761316,1.5258813,878.6,876.5,0.1977784]
[1757369761515,2.18304489,878.59,876.5,0.1977784]
[1757369761713,0.65716359,878.58,876.5,0.1977784]
[1757369761917,0.65716359,878.57,876.5,0.1977784]
[1757369762116,0.65716359,878.56,876.5,0.1977784]
[1757369762318,0.65716359,878.55,876.5,0.1977784]
[1757369762518,0.65716359,878.54,876.5,0.1977784]
[1757369762720,0.65716359,878.53,876.5,0.1977784]
[1757369762921,0.65716359,878.52,876.5,0.1977784]
[1757369763122,0.65716359,878.51,876.5,0.1977784]
[1757369763323,0.65716359,878.5,876.5,0.1977784]
[1757369763520,0.65716359,878.49,876.5,0.1977784]
[1757369763725,0.65716359,878.48,876.5,0.1977784]
[1757369763925,0.65716359,878.47,876.5,0.1977784]
[1757369764123,0.65716359,878.46,876.5,0.1977784]
[1757369764426,0.65716359,878.45,876.5,0.1977784]
[1757369764625,0.65716359,878.44,876.5,0.1977784]
[1757369764922,0.65716359,878.43,876.5,0.1977784]
[1757369765125,0.65716359,878.42,876.5,0.1977784]
[1757369765322,0.65716359,878.41,876.5,0.1977784]
[1757369765626,0.65716359,878.4,876.5,0.1977784]
[1757369765922,0.65716359,878.39,876.5,0.1977784]
[1757369766126,0.65716359,878.38,876.5,0.1977784]
[1757369766327,0.65716359,878.37,876.5,0.1977784]
[1757369766522,0.65716359,878.36,876.5,0.1977784]
[1757369766726,0.65716359,878.35,876.5,0.1977784]
[1757369766923,0.65716359,878.34,876.5,0.1977784]
[1757369767123,0.65716359,878.33,876.5,0.1977784]
[1757369767327,0.65716359,878.32,876.5,0.1977784]
[1757369767524,0.65716359,878.31,876.5,0.1977784]
[1757369767723,0.65716359,878.3,876.5,0.1977784]
[1757369768028,0.65716359,878.29,876.5,0.1977784]
[1757369768229,0.65716359,878.28,876.5,0.1977784]
[1757369768529,0.65716359,878.27,876.5,0.1977784]
[1757369768730,0.65716359,878.26,876.5,0.1977784]
[1757369768929,1.5258813,878.88,876.5,0.1977784]
[1757369769130,1.5258813,878.85,876.5,0.1977784]
[1757369769325,2.18381093,878.84,876.5,0.1977784]
[1757369769530,0.65792963,878.83,876.5,0.1977784]
[1757369769831,0.65792963,878.82,876.5,0.1977784]
[1757369770031,0.65792963,878.81,876.5,0.1977784]
[1757369770228,0.65792963,878.8,876.5,0.1977784]
[1757369770432,0.65792963,878.79,876.5,0.1977784]
[1757369770632,0.65792963,878.78,876.5,0.1977784]
[1757369770830,0.65792963,878.77,876.5,0.1977784]
[1757369771029,0.65792963,878.76,876.5,0.1977784]
[1757369771236,0.65792963,878.75,876.5,0.1977784]
[1757369771436,0.65792963,878.74,876.5,0.1977784]
[1757369771732,0.65792963,878.73,876.5,0.1977784]
[1757369771933,0.65792963,878.72,876.5,0.1977784]
[1757369772137,0.65792963,878.71,876.5,0.1977784]
[1757369772437,0.65792963,878.7,876.5,0.1977784]
[1757369772733,0.65792963,878.69,876.5,0.1977784]